bitfinex/quotes_ETHUSD_20240926
["timestamp","ask_amount","ask_price","bid_price","bid_amount"]
[1727349474970,4.26967,2634.1,2633.5,4.58554]
[1727349475196,4.26967,2634.1,2633.6,0.458554]
[1727349475420,4.26967,2634.1,2633.6,4.255614]
[1727349476484,4.26967,2634.1,2633.6,0.458554]
[1727349476485,3.79657,2634.0,2633.6,0.458554]
[1727349476688,3.79657,2634.0,2633.3,8.34874353]
[1727349476689,3.79665,2633.9,2633.3,4.56151]
[1727349477010,0.4733,2633.7,2633.3,3.79741]
[1727349477391,0.4733,2633.7,2633.3,7.59485]
[1727349477572,0.4733,2633.7,2633.3,4.631945]
[1727349478297,0.4733,2633.7,2633.3,8.429385]
[1727349478497,0.4733,2633.7,2633.3,4.631945]
[1727349479370,0.4733,2633.7,2633.1,4.54818]
[1727349479604,3.0,2634.1,2632.9,3.79802]
[1727349479605,0.4733,2633.3,2632.9,3.79802]
[1727349479777,0.4733,2633.3,2632.9,3.79797]
[1727349480212,0.4733,2633.3,2633.0,3.79793]
[1727349480425,0.4733,2633.3,2633.0,4.56511571]
[1727349480576,3.79708,2633.6,2633.1,3.79771]
[1727349480945,3.79708,2633.6,2632.7,4.55347]
[1727349480946,0.4733,2633.5,2633.2,3.79759]
[1727349482426,4.27054,2633.5,2632.8,3.79813]
[1727349482632,4.27054,2633.5,2632.9,3.79801]
[1727349482938,0.4733,2633.5,2633.1,3.79773]
[1727349483142,0.4733,2633.5,2633.2,3.79764]
[1727349484939,0.4733,2633.5,2633.2,7.59523]
[1727349485234,0.4733,2633.5,2633.2,3.79759]
[1727349487521,0.4733,2633.5,2633.2,3.79758]
[1727349487821,3.79695,2633.7,2633.3,3.79744]
[1727349488136,0.4733,2633.7,2633.3,3.79743]
[1727349488304,4.26995,2633.9,2633.4,7.59455]
[1727349488503,4.26995,2633.9,2633.4,3.79726]
[1727349488740,4.26995,2633.9,2633.5,3.7972]
[1727349488954,0.4733,2634.4,2633.9,3.79656]
[1727349489138,0.4733,2634.4,2634.0,3.7964]
[1727349489317,4.26924,2634.4,2634.0,3.7964]
[1727349489519,0.4733,2634.4,2634.1,3.79623]
[1727349489706,0.4733,2634.4,2634.2,3.79621]
[1727349490119,0.4733,2634.6,2634.2,3.79621]
[1727349490316,0.4733,2634.6,2634.3,3.79603]
[1727349490857,3.79585,2634.5,2634.0,4.5497]
[1727349491057,4.26907,2634.6,2634.0,4.5497]
[1727349491058,4.26907,2634.6,2634.1,3.79632]
[1727349491257,4.26907,2634.6,2634.1,3.79628]
[1727349491440,8.06483,2634.6,2634.1,3.79628]
[1727349491760,0.4733,2634.6,2634.1,3.79628]
[1727349492062,4.26904,2634.6,2634.1,3.79628]
[1727349492217,0.4733,2634.6,2634.1,3.79628]
[1727349492415,3.79588,2634.5,2634.0,3.7965]
[1727349492623,3.79622,2634.2,2633.7,3.79683]
[1727349492847,3.79674,2633.9,2633.3,3.7975]
[1727349493152,0.4733,2633.7,2633.3,3.79744]
[1727349493511,0.4733,2633.7,2633.5,3.79722]
[1727349494550,4.27004,2633.9,2633.5,3.79722]
[1727349495341,0.4733,2633.9,2633.5,7.59434]
[1727349495546,0.4733,2633.9,2633.5,8.434274]
[1727349496165,0.4733,2633.9,2633.7,3.79691]
[1727349496323,3.79638,2634.1,2633.7,3.79691]
[1727349496519,3.79638,2634.1,2633.5,4.637054]
[1727349496520,3.79651,2634.0,2633.6,3.79706]
[1727349496727,3.79636,2634.1,2633.7,3.79691]
[1727349497043,3.79636,2634.1,2633.5,3.79712]
[1727349497251,7.59285,2634.1,2633.6,3.79707]
[1727349497455,3.79651,2634.0,2633.5,3.79712]
[1727349497643,3.79636,2634.1,2633.6,3.79695]
[1727349497846,0.4733,2634.2,2633.7,3.79686]
[1727349498042,0.4733,2634.4,2633.7,0.07593717]
[1727349498243,0.4733,2634.4,2633.8,0.8103]
[1727349498426,3.79514,2635.0,2633.4,3.79729]
[1727349498427,0.4733,2633.8,2633.4,3.79729]
[1727349498633,3.79699,2633.7,2633.1,3.79768]
[1727349498832,0.4733,2633.4,2633.1,0.379768]
[1727349499184,0.4733,2633.4,2632.8,0.8103]
[1727349499466,3.79753,2633.3,2632.8,0.8103]
[1727349499775,3.79753,2633.3,2632.6,3.79838]
[1727349499776,3.79773,2633.2,2632.6,3.79838]
[1727349499935,3.79773,2633.2,2632.7,0.456768]
[1727349500271,3.79767,2633.2,2632.7,4.255118]
[1727349500449,3.79761,2633.3,2632.5,3.79856]
[1727349500627,0.4733,2633.0,2632.5,1.21775635]
[1727349501133,4.27128,2633.0,2632.4,3.79874]
[1727349501330,0.4733,2633.0,2632.0,0.8271]
[1727349501651,0.4733,2633.0,2632.1,3.79917]
[1727349501652,3.79848,2632.7,2632.1,3.79917]
[1727349501854,3.79848,2632.7,2632.2,0.462627]
[1727349502244,3.79848,2632.7,2632.2,4.261717]
[1727349502455,3.79848,2632.7,2632.2,0.462627]
[1727349502642,3.79855,2632.6,2632.1,3.79916]
[1727349502849,3.79782,2633.1,2631.7,4.62685]
[1727349502850,3.79896,2632.3,2631.7,4.62685]
[1727349503233,3.79881,2632.4,2631.8,3.79957]
[1727349503445,3.79896,2632.3,2631.9,0.462667]
[1727349504669,3.79877,2632.5,2631.9,4.262177]
[1727349504875,0.4733,2632.4,2632.0,0.4262177]
[1727349505081,4.27212,2632.4,2631.9,3.79953]
[1727349505279,3.79896,2632.3,2631.8,7.59912]
[1727349505435,3.79896,2632.3,2631.9,0.842622]
[1727349506065,0.4733,2632.4,2631.9,0.842622]
[1727349506384,4.27212,2632.4,2631.9,4.642112]
[1727349506538,4.27212,2632.4,2632.0,0.8441642]
[1727349506739,4.27212,2632.4,2631.7,0.8271]
[1727349507037,4.27212,2632.4,2631.8,3.79961]
[1727349507859,3.79904,2632.3,2631.8,3.79961]
[1727349508699,3.79913,2632.2,2631.7,0.8271]
[1727349508976,7.59831,2632.2,2631.7,5.09336382]
[1727349509138,3.79913,2632.2,2631.7,5.09336382]
[1727349509479,3.79913,2632.2,2631.7,4.26626382]
[1727349509679,3.79925,2632.1,2631.7,0.46656382]
[1727349510190,3.79939,2632.0,2631.6,3.8385382]
[1727349510776,3.79913,2632.2,2631.8,3.79967]
[1727349511076,3.79913,2632.2,2631.7,3.79973]
[1727349511450,7.59831,2632.2,2631.7,3.79973]
[1727349511879,3.79913,2632.2,2631.7,3.79973]
[1727349512232,3.79913,2632.2,2631.8,3.79965]
[1727349512435,4.27218,2632.4,2631.8,3.79965]
[1727349512681,4.27218,2632.4,2632.0,3.79932]
[1727349512682,0.4733,2632.4,2632.0,3.79932]
[1727349513790,4.27214,2632.4,2631.9,3.79951]
[1727349514076,6.79873,2632.5,2632.0,4.58406]
[1727349514263,6.79873,2632.5,2632.0,5.4688209]
[1727349514467,3.79883,2632.4,2632.0,4.58406]
[1727349515883,6.79869,2632.5,2632.0,4.58406]
[1727349516047,6.79869,2632.5,2632.0,8.38336]
[1727349516242,3.79888,2632.4,2632.0,4.58409]
[1727349516444,3.79902,2632.3,2631.8,3.79958]
[1727349516644,3.79889,2632.4,2631.9,3.79939]
[1727349516885,3.79897,2632.3,2631.9,3.79939]
[1727349517090,3.79826,2632.8,2631.9,3.79939]
[1727349517091,0.4733,2632.9,2632.2,0.82]
[1727349517290,0.4733,2632.9,2632.4,3.79874]
[1727349517291,4.27139,2632.9,2632.4,3.79874]
[1727349517593,4.27139,2632.9,2632.3,7.59779]
[1727349517743,4.27139,2632.9,2632.3,3.79888]
[1727349517945,4.27139,2632.9,2632.2,0.82]
[1727349517946,3.79844,2632.7,2632.2,0.82]
[1727349518187,0.900439,2632.9,2632.1,3.7991]
[1727349518497,3.79832,2632.8,2632.1,3.7991]
[1727349518800,3.79832,2632.8,2632.2,3.79907]
[1727349519079,0.4733,2632.9,2632.0,0.84037758]
[1727349519080,0.4733,2632.9,2632.5,3.79861]
[1727349519283,0.4733,2632.9,2632.3,3.79895]
[1727349519445,4.27141,2632.9,2632.4,3.79879]
[1727349521170,4.27141,2632.9,2632.5,3.79863]
[1727349521569,4.27141,2632.9,2632.5,3.79856]
[1727349521570,0.4733,2632.9,2632.5,3.79856]
[1727349521885,0.4733,2632.9,2632.6,3.79845]
[1727349522080,0.4733,2632.9,2632.5,3.79866]
[1727349522704,3.0,2633.1,2632.6,0.8104]
[1727349522868,3.0,2633.1,2632.5,0.75975]
[1727349522869,3.79795,2633.0,2632.5,3.79854]
[1727349523066,3.79795,2633.0,2632.6,3.79851]
[1727349523791,3.0,2633.1,2632.6,3.79851]
[1727349523933,6.79791,2633.1,2632.6,3.79851]
[1727349524140,3.79795,2633.0,2632.6,3.79851]
[1727349524801,3.0,2633.1,2632.7,3.79835]
[1727349525635,6.7978,2633.1,2632.7,3.79835]
[1727349525842,6.7978,2633.1,2632.4,5.454199]
[1727349526135,3.79796,2633.0,2632.6,3.79852]
[1727349526432,3.0,2633.1,2632.6,7.59697]
[1727349526644,3.0,2633.1,2632.6,3.79845]
[1727349526645,3.79795,2633.0,2632.6,3.79845]
[1727349527016,6.79782,2633.1,2632.7,3.79837]
[1727349527398,6.79782,2633.1,2632.6,4.21294673]
[1727349527599,3.79782,2633.1,2632.6,3.7985]
[1727349527817,4.27081,2633.3,2632.8,3.79823]
[1727349528012,3.79771,2633.2,2632.8,0.7672452]
[1727349528210,0.4733,2633.3,2632.8,4.56343]
[1727349528414,0.4733,2633.3,2632.9,3.79803]
[1727349529013,0.4733,2633.5,2633.0,3.79793]
[1727349529217,4.26976,2634.1,2633.2,0.7653]
[1727349529412,4.26976,2634.1,2633.6,3.79701]
[1727349530613,4.26976,2634.1,2633.6,3.79698]
[1727349530810,0.4733,2634.1,2633.6,3.79698]
[1727349531139,3.79612,2634.3,2633.6,3.79698]
[1727349531140,4.26942,2634.3,2633.8,3.79676]
[1727349531371,3.79632,2634.2,2633.7,0.7897]
[1727349531574,3.79632,2634.2,2633.7,4.58661]
[1727349531935,0.4733,2634.3,2633.8,7.5935]
[1727349532180,0.4733,2634.3,2633.8,3.79672]
[1727349532475,0.4733,2634.3,2633.8,3.79671]
[1727349532837,4.26939,2634.3,2633.8,3.79671]
[1727349533061,3.79581,2634.5,2634.0,3.79642]
[1727349533267,3.79569,2634.6,2634.0,3.79638]
[1727349533440,3.79601,2634.4,2633.7,0.7897]
[1727349533652,3.79601,2634.4,2633.7,4.58654]
[1727349533974,3.79608,2634.3,2633.7,4.58654]
[1727349534193,3.79601,2634.4,2633.7,4.58654]
[1727349534194,3.79601,2634.4,2633.8,3.79677]
[1727349534402,3.79601,2634.4,2633.8,4.63414735]
[1727349534403,7.59203,2634.4,2633.8,4.63414735]
[1727349534683,3.79609,2634.3,2633.7,4.58654]
[1727349534886,3.79624,2634.2,2633.7,4.58654]
[1727349535182,4.26954,2634.2,2633.5,4.62273]
[1727349535477,4.26954,2634.2,2633.6,3.797]
[1727349535854,3.79636,2634.1,2633.6,3.797]
[1727349536365,8.06585,2634.2,2633.6,3.797]
[1727349536564,3.79636,2634.1,2633.6,3.797]
[1727349536890,4.26954,2634.2,2633.6,3.797]
[1727349537379,4.26954,2634.2,2633.7,3.79686]
[1727349537745,4.26954,2634.2,2633.6,4.33510364]
[1727349537746,0.4733,2634.2,2633.8,3.79679]
[1727349537941,7.59205,2634.4,2633.8,3.79679]
[1727349537942,3.79607,2634.3,2633.8,3.79679]
[1727349539283,4.26931,2634.4,2633.8,3.79679]
[1727349539448,3.79622,2634.2,2633.6,8.13210364]
[1727349539778,3.79622,2634.2,2633.7,3.79681]
[1727349539963,3.79607,2634.3,2633.8,3.79678]
[1727349540170,4.26932,2634.4,2633.9,3.79662]
[1727349541447,3.79609,2634.3,2633.8,3.79669]
[1727349541848,4.26932,2634.4,2633.9,4.57166]
[1727349542271,4.26932,2634.4,2633.8,3.79669]
[1727349542445,4.26932,2634.4,2633.9,3.79661]
[1727349542946,8.06533,2634.4,2633.9,3.79661]
[1727349543346,4.26931,2634.4,2633.8,0.5603064]
[1727349543652,4.26931,2634.4,2633.7,0.7522]
[1727349543653,4.26931,2634.4,2633.9,3.79663]
[1727349543842,3.79615,2634.3,2633.7,4.549]
[1727349544047,3.79615,2634.3,2633.8,3.79678]
[1727349544243,3.7961,2634.3,2633.8,3.79671]
[1727349544662,3.7961,2634.3,2633.8,3.79669]
[1727349545284,3.7961,2634.3,2633.7,1.26091036]
[1727349545442,3.7961,2634.3,2633.9,3.79663]
[1727349545841,3.7961,2634.3,2633.8,4.3563724]
[1727349546045,3.7961,2634.3,2633.9,3.79664]
[1727349546266,3.7961,2634.3,2633.8,0.5596024]
[1727349546478,0.4733,2634.4,2633.7,4.549]
[1727349546479,3.79646,2634.1,2633.7,0.7522]
[1727349546679,3.79627,2634.2,2633.6,0.53810364]
[1727349546884,3.79663,2634.0,2633.6,0.53810364]
[1727349547183,3.79663,2634.0,2633.6,4.33516364]
[1727349547485,3.79663,2634.0,2633.6,0.53810364]
[1727349547845,7.59322,2634.0,2633.6,0.53810364]
[1727349548288,7.59321,2634.0,2633.5,4.56323]
[1727349548492,3.79659,2634.0,2633.5,4.56323]
[1727349549474,3.79659,2634.0,2633.5,0.7661]
[1727349549786,3.79666,2633.9,2633.5,4.56325]
[1727349549946,3.79666,2633.9,2633.5,5.399303]
[1727349550152,3.79565,2634.6,2634.0,3.79642]
[1727349550344,3.8340682,2634.8,2633.8,4.6688132]
[1727349550345,3.79596,2634.4,2633.8,4.6688132]
[1727349550549,3.79596,2634.4,2633.8,8.3896]
[1727349550793,4.269,2634.6,2633.8,0.7962]
[1727349550951,3.7959,2634.5,2633.8,8.38962]
[1727349551152,3.79609,2634.3,2633.8,5.43945432]
[1727349551478,3.79609,2634.3,2633.8,4.5929]
[1727349551795,4.17064035,2634.7,2633.6,4.62279]
[1727349551796,0.4733,2634.2,2633.6,4.62279]
[1727349551952,3.79658,2634.0,2633.6,0.8258]
[1727349552368,3.79648,2634.1,2633.6,0.8258]
[1727349552552,7.59298,2634.1,2633.6,0.8258]
[1727349552858,7.59296,2634.1,2633.6,0.8258]
[1727349553058,3.79648,2634.1,2633.6,0.8258]
[1727349553271,3.79648,2634.1,2633.6,4.62288]
[1727349553488,3.79594,2634.4,2633.8,3.79671]
[1727349553675,0.4733,2634.6,2633.8,3.79671]
[1727349553969,3.79614,2634.3,2633.8,3.79671]
[1727349555305,7.59232,2634.3,2633.7,0.8128]
[1727349555467,3.79614,2634.3,2633.7,0.8128]
[1727349555666,3.79614,2634.3,2633.7,1.69872875]
[1727349555871,3.79614,2634.3,2633.8,3.79678]
[1727349559516,0.0386782,2634.8,2634.1,4.55657]
[1727349559703,3.79552,2634.7,2634.1,4.63248693]
[1727349559904,3.79564,2634.6,2634.1,4.63248693]
[1727349560103,3.79564,2634.6,2634.1,8.94701562]
[1727349560420,3.79564,2634.6,2634.1,1.27854869]
[1727349560724,3.79579,2634.5,2634.1,0.7603]
[1727349562110,7.59196,2634.4,2634.1,0.7603]
[1727349562311,3.79593,2634.4,2634.1,0.7603]
[1727349562498,3.79608,2634.3,2634.1,0.7603]
[1727349563008,3.79593,2634.4,2634.1,0.7603]
[1727349565111,3.79582,2634.5,2634.1,0.7603]
[1727349565995,3.79593,2634.4,2634.1,0.7603]
[1727349566787,3.79587,2634.5,2634.1,0.7603]
[1727349567716,3.79572,2634.6,2634.1,4.55665]
[1727349568213,3.79572,2634.6,2634.1,5.391955]
[1727349568523,3.79579,2634.5,2634.1,5.391955]
[1727349568819,3.79565,2634.6,2634.1,5.391955]
[1727349569005,3.79581,2634.5,2634.1,5.391955]
[1727349569385,3.79588,2634.5,2634.1,1.595605]
[1727349571584,3.79595,2634.4,2634.1,1.595605]
[1727349572021,3.79588,2634.5,2634.1,5.391935]
[1727349572318,3.79588,2634.5,2634.1,1.595605]
[1727349572522,7.59177,2634.5,2634.1,1.595605]
[1727349572897,3.79603,2634.4,2634.1,1.595605]
[1727349573123,3.79603,2634.4,2634.1,0.7603]
[1727349573632,0.5119782,2634.8,2634.1,0.7603]
[1727349573840,3.79693,2633.7,2633.6,0.802]
[1727349574420,3.79681,2633.8,2633.6,0.802]
[1727349574792,3.79659,2634.0,2633.6,0.802]
[1727349574999,3.79684,2633.8,2633.6,0.802]
[1727349575324,3.79667,2633.9,2633.6,0.802]
[1727349575528,3.7968,2633.8,2633.6,0.802]
[1727349575699,3.79667,2633.9,2633.6,0.802]
[1727349576285,3.79667,2633.9,2633.6,1.261935]
[1727349576491,3.79667,2633.9,2633.6,0.802]
[1727349577612,3.79664,2634.0,2633.6,0.802]
[1727349577813,3.79637,2634.1,2633.6,5.06651281]
[1727349578326,3.79658,2634.0,2633.6,5.06659281]
[1727349579928,3.79658,2634.0,2633.6,1.26952281]
[1727349580139,3.79658,2634.0,2633.7,0.51426648]
[1727349580734,3.79665,2633.9,2633.7,0.51426648]
[1727349581108,3.79665,2633.9,2633.6,0.802]
[1727349581348,3.79658,2634.0,2633.6,0.802]
[1727349581531,3.79658,2634.0,2633.6,4.59907]
[1727349581732,3.79658,2634.0,2633.6,0.802]
[1727349582945,7.59318,2634.0,2633.6,0.802]
[1727349583161,3.79658,2634.0,2633.7,0.46750845]
[1727349583520,3.79668,2633.9,2633.7,0.46750845]
[1727349583812,3.79668,2633.9,2633.6,0.802]
[1727349584010,3.7965,2634.0,2633.6,0.802]
[1727349584452,7.59311,2634.0,2633.6,0.802]
[1727349584658,3.7965,2634.0,2633.6,0.802]
[1727349585152,3.7965,2634.0,2633.7,0.46750945]
[1727349585449,3.7965,2634.0,2633.6,4.67501276]
[1727349586116,3.7965,2634.0,2633.6,0.87793276]
[1727349586117,7.59311,2634.0,2633.6,0.87793276]
[1727349586313,3.79645,2634.1,2633.6,4.67494276]
[1727349586812,7.59293,2634.1,2633.6,4.67494276]
[1727349587045,7.59293,2634.1,2633.7,0.64222766]
[1727349587046,3.7965,2634.0,2633.7,0.64222766]
[1727349587761,3.79645,2634.1,2633.7,0.64222766]
[1727349587968,7.59291,2634.1,2633.7,0.64222766]
[1727349588136,7.59295,2634.1,2633.7,0.64222766]
[1727349588338,3.79645,2634.1,2633.7,0.64222766]
[1727349588543,3.79654,2634.0,2633.7,0.64222766]
[1727349589075,3.79654,2634.0,2633.6,0.802]
[1727349589421,3.79682,2633.8,2633.6,0.802]
[1727349590127,3.79682,2633.8,2633.0,4.59377578]
[1727349590128,3.79766,2633.2,2633.1,0.8197]
[1727349590367,3.79766,2633.2,2632.7,4.59426578]
[1727349590368,3.79766,2633.2,2632.7,0.8197]
[1727349590536,3.79793,2633.1,2632.7,0.8197]
[1727349590741,3.79795,2633.0,2632.7,0.8197]
[1727349590936,3.79795,2633.0,2632.7,1.661378]
[1727349591136,3.79769,2633.2,2632.7,0.8197]
[1727349591341,3.7979,2633.1,2632.7,0.8197]
[1727349592367,3.79795,2633.0,2632.7,0.8197]
[1727349592670,3.79769,2633.2,2632.7,5.079812]
[1727349593284,3.79781,2633.1,2632.7,1.281522]
[1727349593487,3.79784,2633.1,2632.7,0.8197]
[1727349593774,3.79769,2633.2,2632.7,0.8197]
[1727349594090,3.79745,2633.4,2632.8,4.259971]
[1727349594373,3.79754,2633.3,2632.8,3.8741052]
[1727349594668,3.79754,2633.3,2632.8,3.79815]
[1727349595683,0.4733,2633.6,2632.7,0.8197]
[1727349595684,3.79766,2633.2,2632.7,0.8197]
[1727349595861,3.7978,2633.1,2632.7,1.281519]
[1727349596183,3.79801,2633.0,2632.7,0.8197]
[1727349596496,3.79772,2633.2,2632.7,0.8197]
[1727349596691,3.79745,2633.4,2632.9,0.7702]
[1727349596843,3.79745,2633.4,2632.9,1.61353562]
[1727349596844,7.59491,2633.4,2632.9,1.61353562]
[1727349597396,3.79745,2633.4,2632.9,1.61353562]
[1727349597544,7.59489,2633.4,2632.9,1.6894884]
[1727349597744,3.79744,2633.4,2632.9,1.61353562]
[1727349597974,3.79744,2633.4,2633.0,0.92857891]
[1727349599190,7.59489,2633.4,2633.0,0.92857891]
[1727349600099,3.79754,2633.3,2633.0,0.92857891]
[1727349600278,3.79754,2633.3,2632.9,0.7702]
[1727349601180,0.4733,2633.6,2632.7,0.07595091]
[1727349601181,3.79791,2633.1,2632.7,0.765]
[1727349601566,3.79766,2633.2,2632.7,4.56337]
[1727349601875,3.79766,2633.2,2632.8,0.836178]
[1727349602090,3.79722,2633.6,2633.0,3.79781]
[1727349602289,3.797,2633.7,2633.1,0.8815442]
[1727349602471,3.797,2633.7,2633.2,0.46793542]
[1727349602647,3.7971,2633.6,2633.2,4.26555542]
[1727349602866,3.7971,2633.6,2633.2,0.46793542]
[1727349603480,7.59426,2633.6,2633.2,0.46793542]
[1727349603660,3.7971,2633.6,2633.2,0.46793542]
[1727349604177,3.7971,2633.6,2633.2,4.26556542]
[1727349604376,3.7971,2633.6,2633.2,0.46793542]
[1727349604874,3.79724,2633.5,2633.1,0.8056]
[1727349605399,3.79723,2633.5,2633.1,0.8056]
[1727349606098,3.7971,2633.6,2633.1,4.60338]
[1727349606099,7.59431,2633.6,2633.1,4.60338]
[1727349606303,7.59431,2633.6,2633.2,0.460338]
[1727349606473,3.7971,2633.6,2633.2,0.460338]
[1727349606673,3.79723,2633.5,2633.2,0.460338]
[1727349607404,3.7971,2633.6,2633.2,0.460338]
[1727349607981,7.59428,2633.6,2633.2,0.460338]
[1727349608615,3.7971,2633.6,2633.2,0.460338]
[1727349608812,3.7971,2633.6,2633.2,4.257988]
[1727349609177,3.79729,2633.5,2633.2,0.460338]
[1727349609479,3.79729,2633.5,2633.1,0.8056]
[1727349609882,3.79688,2633.8,2633.1,4.60339]
[1727349610082,7.59427,2633.6,2633.1,5.07123364]
[1727349610298,3.79709,2633.6,2633.1,4.6033]
[1727349610497,3.79709,2633.6,2633.2,3.79763]
[1727349611781,3.79709,2633.6,2633.1,4.60339]
[1727349612309,7.59428,2633.6,2633.1,4.60339]
[1727349612521,3.79724,2633.5,2633.1,4.60339]
[1727349612811,3.79691,2633.8,2633.1,5.443527]
[1727349612995,7.59434,2633.6,2633.1,4.60339]
[1727349613206,3.79715,2633.6,2633.1,4.60339]
[1727349613377,7.59436,2633.6,2633.1,4.60339]
[1727349613707,7.59436,2633.6,2633.1,5.443528]
[1727349614177,3.79715,2633.6,2633.1,5.443528]
[1727349614368,3.79715,2633.6,2633.1,5.443458]
[1727349615510,3.79715,2633.6,2633.2,3.79762]
[1727349617486,7.59431,2633.6,2633.2,3.79762]
[1727349617690,0.4733,2633.9,2633.2,0.9241278]
[1727349617904,11.15552,2634.7,2633.2,0.9241278]
[1727349617905,3.79661,2634.0,2633.6,0.776]
[1727349618116,3.79661,2634.0,2633.6,4.57308]
[1727349618693,3.79669,2633.9,2633.6,0.776]
[1727349619092,3.7965,2634.1,2633.6,0.776]
[1727349619293,3.79658,2634.0,2633.6,0.776]
[1727349619601,0.4733,2634.3,2633.7,3.79687]
[1727349619602,7.59253,2634.2,2633.7,3.79687]
[1727349620197,3.79637,2634.1,2633.7,3.87280176]
[1727349620402,3.79609,2634.3,2633.8,3.79678]
[1727349620612,3.79609,2634.3,2633.9,0.8004]
[1727349621297,3.79638,2634.1,2633.9,0.8004]
[1727349622332,7.59282,2634.1,2633.9,0.8004]
[1727349622538,3.79622,2634.2,2633.9,0.8004]
[1727349624238,3.79614,2634.3,2633.9,0.8004]
[1727349624453,7.59234,2634.3,2633.9,1.64739077]
[1727349624617,3.79623,2634.2,2633.9,1.64739077]
[1727349624819,3.79623,2634.2,2633.9,0.8004]
[1727349624998,3.79614,2634.3,2633.9,0.8004]
[1727349625199,3.79627,2634.2,2633.9,0.8004]
[1727349625415,3.79642,2634.1,2633.9,0.8004]
[1727349625752,3.79674,2633.9,2633.6,0.8311]
[1727349626152,3.79679,2633.8,2633.6,0.8311]
[1727349626437,3.79674,2633.9,2633.6,0.8311]
[1727349626952,3.79672,2633.9,2633.6,0.8311]
[1727349628356,3.79646,2634.1,2633.6,0.8311]
[1727349628651,3.79622,2634.2,2633.6,4.62816]
[1727349628851,3.79619,2634.3,2633.8,4.61256]
[1727349629557,3.79619,2634.3,2633.9,3.79658]
[1727349629757,3.79617,2634.3,2633.8,8.40927]
[1727349629974,3.79617,2634.3,2633.8,4.61256]
[1727349630759,3.79594,2634.4,2633.9,3.79654]
[1727349631535,4.26915,2634.5,2633.9,3.79654]
[1727349631835,3.79608,2634.3,2633.9,3.79654]
[1727349632037,3.79608,2634.3,2633.8,0.8159]
[1727349632233,0.4733,2634.5,2634.0,0.06995788]
[1727349632456,3.79616,2634.3,2633.8,4.61262]
[1727349632664,3.79616,2634.3,2634.1,0.07019758]
[1727349632881,3.79616,2634.3,2633.8,0.8159]
[1727349633084,3.79595,2634.4,2634.2,0.07012138]
[1727349633590,3.79607,2634.3,2634.2,0.07012138]
[1727349633791,3.79595,2634.4,2634.2,0.07012138]
[1727349634020,3.79595,2634.4,2634.0,4.58363]
[1727349634296,3.7959,2634.5,2634.3,0.07004519]
[1727349634459,3.79593,2634.4,2634.0,4.58369]
[1727349635493,4.26888,2634.7,2634.1,3.79635]
[1727349635664,0.0386782,2634.8,2634.3,3.79601]
[1727349635859,0.0386782,2634.8,2634.3,4.6391239]
[1727349635860,3.7955,2634.7,2634.3,4.6391239]
[1727349636088,3.7955,2634.7,2634.3,3.79604]
[1727349636295,7.59109,2634.7,2634.3,3.79604]
[1727349636498,3.79576,2634.6,2634.2,0.7627]
[1727349636791,0.0386782,2634.8,2634.2,0.7627]
[1727349636792,3.79586,2634.5,2634.2,0.7627]
[1727349636995,3.79586,2634.5,2634.0,4.634418]
[1727349636996,0.379586,2634.5,2633.7,0.7803]
[1727349637152,7.59286,2634.1,2633.7,4.57723]
[1727349637354,7.59287,2634.1,2633.7,4.57723]
[1727349637593,3.79619,2634.3,2633.8,3.79677]
[1727349637753,3.79619,2634.3,2633.7,4.57722]
[1727349637754,3.79636,2634.1,2633.7,4.57722]
[1727349637955,4.26897,2634.6,2633.8,0.767]
[1727349637956,3.79588,2634.5,2633.8,0.767]
[1727349638266,3.79608,2634.3,2633.9,3.79656]
[1727349638580,3.79608,2634.3,2633.8,4.56369]
[1727349638581,3.79608,2634.3,2633.8,4.56375]
[1727349638953,3.79608,2634.3,2633.8,0.767]
[1727349639290,4.555275,2634.3,2633.9,3.79664]
[1727349639493,3.79637,2634.1,2633.8,0.767]
[1727349639885,3.79637,2634.1,2633.9,0.07013177]
[1727349640203,3.79629,2634.2,2633.9,0.07013177]
[1727349644093,4.555275,2634.3,2633.9,0.07013177]
[1727349644407,3.79608,2634.3,2633.9,0.07013177]
[1727349646119,3.79567,2634.6,2634.1,3.79634]
[1727349646410,3.79585,2634.5,2634.2,0.06993826]
[1727349647827,0.5119782,2634.8,2634.5,0.7743]
[1727349647828,0.0386782,2634.8,2634.5,0.7743]
[1727349648047,0.0386782,2634.8,2634.5,4.57002]
[1727349648325,0.0386782,2634.8,2634.6,0.06963352]
[1727349648493,3.8340382,2634.8,2634.6,0.06963352]
[1727349649209,0.0386782,2634.8,2634.6,0.06963352]
[1727349649809,3.8340382,2634.8,2634.6,0.06963352]
[1727349650551,3.8340382,2634.8,2634.7,0.7526]
[1727349650552,0.0386782,2634.8,2634.7,0.7526]
[1727349651064,0.0386782,2634.8,2634.7,0.82201693]
[1727349651697,0.0386782,2634.8,2634.7,4.61750693]
[1727349651844,0.0386782,2634.8,2634.7,0.86681693]
[1727349652205,0.0386782,2634.8,2634.7,4.66230693]
[1727349653209,0.0386782,2634.8,2634.7,5.28820397]
[1727349653421,0.0386782,2634.8,2634.7,5.21230693]
[1727349653620,0.0386782,2634.8,2634.7,6.11309862]
[1727349654247,0.0386782,2634.8,2634.7,6.18899727]
[1727349654407,0.0386782,2634.8,2634.7,6.11309862]
[1727349654811,0.0386782,2634.8,2634.7,6.18899727]
[1727349655437,0.0386782,2634.8,2634.7,9.97511373]
[1727349655750,0.0386782,2634.8,2634.7,9.89921508]
[1727349656120,0.0386782,2634.8,2634.7,12.89921508]
[1727349656525,0.0386782,2634.8,2634.7,8.56309862]